Workbook

Sheet QuickBooks Desktop Export Tips

Sheet Sheet1
O1: Projected | P1: Projected | R1: Projected | S1: Projected | T1: Projected | U1: Projected | V1: Projected | W1: Projected | X1: Projected | Y1: Projected | Z1: Projected | AA1: Projected | AB1: Projected | AC1: Projected | AD1: Projected
C2: Jan 24 | D2: Feb 24 | E2: Mar 24 | F2: Apr 24 | G2: May 24 | H2: Jun 24 | I2: Jul 24 | J2: Aug 24 | K2: Sep 24 | L2: Oct 24 | M2: TOTAL | O2: Nov | P2: Dec | R2: Jan | S2: Feb | T2: Mar | U2: Apr | V2: May | W2: Jun | X2: Jul | Y2: Aug | Z2: Sep | AA2: Oct | AB2: Nov | AC2: Dec | AD2: CY 2025
A3: Income
A4: 40000 · Laundry Income
B5: 40010 · Sales - Downtown Branch | C5: 17215.61 | D5: 22621.41 | E5: 20342.17 | F5: 22587.66 | G5: 23130.71 | H5: 22289.09 | I5: 28824.16 | J5: 28929.26 | K5: 22731.52 | L5: 25977.14 | M5: =ROUND(SUM(C5:L5),5) -> 234648.73 | O5: =L5*1.1 -> 28574.854 | P5: =O5*1.02 -> 29146.35108 | R5: =(P5*1.02)+6500 -> 36229.2781 | S5: =R5*1.02 -> 36953.86366 | T5: =S5*1.02 -> 37692.94094 | U5: 38446.79976 | V5: 39215.73575 | W5: 40000.05047 | X5: 40800.05148 | Y5: 41616.0525 | Z5: 42448.37355 | AA5: =Z5*1.01 -> 42872.85729 | AB5: =AA5*1.01 -> 43301.58586 | AC5: 43734.60172 | AD5: =SUM(R5:AC5) -> 483312.1911
B6: 40020 · Sales - FE Warren Branch | C6: 9343.85 | D6: 9984.2 | E6: 8453.88 | F6: 7663.71 | G6: 7812.11 | H6: 5756.84 | I6: 7902.34 | J6: 7615.4 | K6: 7243 | L6: 7196.38 | M6: =ROUND(SUM(C6:L6),5) -> 78971.71 | O6: 7000 | P6: 7000
A7: Total 40000 · Laundry Income | C7: =ROUND(SUM(C4:C6),5) -> 26559.46 | D7: 32605.61 | E7: 28796.05 | F7: 30251.37 | G7: 30942.82 | H7: 28045.93 | I7: 36726.5 | J7: 36544.66 | K7: 29974.52 | L7: 33173.52 | M7: =ROUND(SUM(C7:L7),5) -> 313620.44 | O7: =SUM(O5:O6) -> 35574.854 | P7: =SUM(P5:P6) -> 36146.35108 | R7: 36229.2781 | S7: 36953.86366 | T7: 37692.94094 | U7: 38446.79976 | V7: 39215.73575 | W7: 40000.05047 | X7: 40800.05148 | Y7: 41616.0525 | Z7: 42448.37355 | AA7: =SUM(AA5:AA6) -> 42872.85729 | AB7: 43301.58586 | AC7: 43734.60172 | AD7: =SUM(AD5:AD6) -> 483312.1911
A8: 41000 · Rental Income
B9: 41020 · Parking Lot Rent | C9: 75 | D9: 75 | E9: 75 | F9: 75 | G9: 75 | H9: 75 | I9: 75 | J9: 75 | K9: 0 | L9: 75 | M9: =ROUND(SUM(C9:L9),5) -> 675 | O9: 75 | P9: 75 | R9: 75 | S9: 75 | T9: 75 | U9: 75 | V9: 75 | W9: 75 | X9: 0 | Y9: 75 | Z9: 75 | AA9: 75 | AB9: 75 | AC9: 75 | AD9: =SUM(R9:AC9) -> 825
A10: Total 41000 · Rental Income | C10: =ROUND(SUM(C8:C9),5) -> 75 | D10: 75 | E10: 75 | F10: 75 | G10: 75 | H10: 75 | I10: 75 | J10: 75 | K10: 0 | L10: 75 | M10: =ROUND(SUM(C10:L10),5) -> 675 | O10: =ROUND(SUM(O8:O9),5) -> 75 | P10: 75 | R10: 75 | S10: 75 | T10: 75 | U10: 75 | V10: 75 | W10: 75 | X10: 0 | Y10: 75 | Z10: 75 | AA10: =ROUND(SUM(AA8:AA9),5) -> 75 | AB10: 75 | AC10: 75 | AD10: =ROUND(SUM(AD8:AD9),5) -> 825
A11: 42000 · Other Income
B12: 42001 · Sales Tax Discount | C12: 22.11 | D12: 23.61 | E12: 25.76 | F12: 25.23 | G12: 25.41 | H12: 24.93 | I12: 0 | J12: 64.98 | K12: 26.61 | L12: 29.14 | M12: =ROUND(SUM(C12:L12),5) -> 267.78 | O12: =ROUND(O5*0.00195,2) -> 55.72 | P12: =ROUND(P5*0.00195,2) -> 56.84 | R12: 70.65 | S12: 72.06 | T12: 73.5 | U12: 74.97 | V12: 76.47 | W12: 78 | X12: 79.56 | Y12: 81.15 | Z12: 82.77 | AA12: =ROUND(AA5*0.00195,2) -> 83.6 | AB12: 84.44 | AC12: 85.28 | AD12: =SUM(R12:AC12) -> 942.45
A13: Total 42000 · Other Income | C13: =ROUND(SUM(C11:C12),5) -> 22.11 | D13: 23.61 | E13: 25.76 | F13: 25.23 | G13: 25.41 | H13: 24.93 | I13: 0 | J13: 64.98 | K13: 26.61 | L13: 29.14 | M13: =ROUND(SUM(C13:L13),5) -> 267.78 | O13: =ROUND(SUM(O11:O12),5) -> 55.72 | P13: 56.84 | R13: 70.65 | S13: 72.06 | T13: 73.5 | U13: 74.97 | V13: 76.47 | W13: 78 | X13: 79.56 | Y13: 81.15 | Z13: 82.77 | AA13: 83.6 | AB13: 84.44 | AC13: 85.28 | AD13: =SUM(R13:AC13) -> 942.45
A14: Total Income | C14: =ROUND(C3+C7+C10+C13,5) -> 26656.57 | D14: 32704.22 | E14: 28896.81 | F14: 30351.6 | G14: 31043.23 | H14: 28145.86 | I14: 36801.5 | J14: 36684.64 | K14: 30001.13 | L14: 33277.66 | M14: =ROUND(SUM(C14:L14),5) -> 314563.22 | O14: =ROUND(O3+O7+O10+O13,5) -> 35705.574 | P14: 36278.19108 | R14: =ROUND(R3+R7+R10+R13,5) -> 36374.9281 | S14: 37100.92366 | T14: 37841.44094 | U14: 38596.76976 | V14: 39367.20575 | W14: 40153.05047 | X14: 40879.61148 | Y14: 41772.2025 | Z14: =ROUND(Z3+Z7+Z10+Z13,5) -> 42606.14355 | AA14: 43031.45729 | AB14: 43461.02586 | AC14: 43894.88172 | AD14: =ROUND(AD3+AD7+AD10+AD13,5) -> 485079.6411
A15: Gross Profit | C15: =C14 -> 26656.57 | D15: 32704.22 | E15: 28896.81 | F15: 30351.6 | G15: 31043.23 | H15: 28145.86 | I15: 36801.5 | J15: 36684.64 | K15: 30001.13 | L15: 33277.66 | M15: =ROUND(SUM(C15:L15),5) -> 314563.22 | O15: =O14 -> 35705.574 | P15: 36278.19108 | R15: 36374.9281 | S15: 37100.92366 | T15: 37841.44094 | U15: 38596.76976 | V15: 39367.20575 | W15: 40153.05047 | X15: 40879.61148 | Y15: 41772.2025 | Z15: =Z14 -> 42606.14355 | AA15: 43031.45729 | AB15: 43461.02586 | AC15: 43894.88172 | AD15: =AD14 -> 485079.6411
A16: Expense
A17: 60000 · Employee Expenses
B18: 60010 · Payroll Expenses | C18: 19072.89 | D18: 13970.81 | E18: 14487.96 | F18: 15082.49 | G18: 14359.08 | H18: 15619.42 | I18: 23602.22 | J18: 16897.38 | K18: 16026.6 | L18: 15461.63 | M18: =ROUND(SUM(C18:L18),5) -> 164580.48 | O18: =L18*1.1 -> 17007.793 | P18: =O18*1.1 -> 18708.5723 | R18: =(P18/2)*3 -> 28062.85845 | S18: =P18 -> 18708.5723 | T18: =S18 -> 18708.5723 | U18: 18708.5723 | V18: 18708.5723 | W18: 18708.5723 | X18: =(W18/2)*3 -> 28062.85845 | Y18: =W18 -> 18708.5723 | Z18: =Y18*1.1 -> 20579.42953 | AA18: =Z18*1.1 -> 22637.37248 | AB18: 24901.10973 | AC18: 27391.2207 | AD18: =SUM(R18:AC18) -> 263886.2831
B19: 60020 · Payroll Taxes | C19: 1872.39 | D19: 1359.29 | E19: 1411.53 | F19: 1452.49 | G19: 1445.68 | H19: 1483.39 | I19: 2189.38 | J19: 1558.96 | K19: 1441.06 | L19: 1456.91 | M19: =ROUND(SUM(C19:L19),5) -> 15671.08 | O19: =ROUND(0.095218339380223*O18,2) -> 1619.45 | P19: =ROUND(0.095218339380223*P18,2) -> 1781.4 | R19: 2672.1 | S19: 1781.4 | T19: 1781.4 | U19: 1781.4 | V19: 1781.4 | W19: 1781.4 | X19: 2672.1 | Y19: 1781.4 | Z19: 1959.54 | AA19: =ROUND(0.095218339380223*AA18,2) -> 2155.49 | AB19: 2371.04 | AC19: 2608.15 | AD19: 25126.82
B20: 60030 · Contract Labor | C20: 1104 | D20: 0 | E20: 0 | F20: 0 | G20: -263 | H20: 0 | I20: 0 | J20: 65 | K20: 0 | L20: 60 | M20: =ROUND(SUM(C20:L20),5) -> 966 | O20: 0 | P20: 0 | R20: 0 | S20: 0 | T20: 0 | U20: 0 | V20: 0 | W20: 0 | X20: 0 | Y20: 0 | Z20: 0 | AA20: 0 | AB20: 0 | AC20: 0 | AD20: 0
A21: Total 60000 · Employee Expenses | C21: =ROUND(SUM(C17:C20),5) -> 22049.28 | D21: 15330.1 | E21: 15899.49 | F21: 16534.98 | G21: 15541.76 | H21: 17102.81 | I21: 25791.6 | J21: 18521.34 | K21: 17467.66 | L21: 16978.54 | M21: =ROUND(SUM(C21:L21),5) -> 181217.56 | O21: =ROUND(SUM(O17:O20),5) -> 18627.243 | P21: 20489.9723 | R21: 30734.95845 | S21: 20489.9723 | T21: 20489.9723 | U21: 20489.9723 | V21: 20489.9723 | W21: 20489.9723 | X21: 30734.95845 | Y21: =ROUND(SUM(Y17:Y20),5) -> 20489.9723 | Z21: =ROUND(SUM(Z17:Z20),5) -> 22538.96953 | AA21: =ROUND(SUM(AA17:AA20),5) -> 24792.86248 | AB21: 27272.14973 | AC21: 29999.3707 | AD21: 289013.1031
A22: 61000 · Supplies
B23: 61010 · Supplies Laundry | C23: 5297.41 | D23: -36.52 | E23: 8230.71 | F23: 4175.91 | G23: 140.2 | H23: 6491.79 | I23: 2780.97 | J23: 193.82 | K23: 1135.64 | L23: 4544.71 | M23: =ROUND(SUM(C23:L23),5) -> 32954.64 | O23: =ROUND(0.105078100139136*O7,2) -> 3738.14 | P23: =ROUND(0.105078100139136*P7,2) -> 3798.19 | R23: =ROUND(0.105078100139136*R7,2) -> 3806.9 | S23: 3883.04 | T23: 3960.7 | U23: 4039.92 | V23: 4120.72 | W23: 4203.13 | X23: 4287.19 | Y23: 4372.94 | Z23: 4460.39 | AA23: =ROUND(0.105078100139136*AA7,2) -> 4505 | AB23: 4550.05 | AC23: 4595.55 | AD23: =SUM(R23:AC23) -> 50785.53
B24: 61020 · Office Supplies | C24: 20.95 | D24: 1003.21 | E24: 44.15 | F24: 2728.05 | G24: 67.2 | H24: 77.9 | I24: 291.35 | J24: 0 | K24: 43.95 | L24: 283.09 | M24: =ROUND(SUM(C24:L24),5) -> 4559.85 | O24: 120 | P24: 120 | R24: 120 | S24: 120 | T24: 120 | U24: 120 | V24: 120 | W24: 120 | X24: 120 | Y24: 120 | Z24: 120 | AA24: 120 | AB24: 120 | AC24: 120 | AD24: 1440
A25: Total 61000 · Supplies | C25: =ROUND(SUM(C22:C24),5) -> 5318.36 | D25: 966.69 | E25: 8274.86 | F25: 6903.96 | G25: 207.4 | H25: 6569.69 | I25: 3072.32 | J25: 193.82 | K25: 1179.59 | L25: 4827.8 | M25: =ROUND(SUM(C25:L25),5) -> 37514.49 | O25: =ROUND(SUM(O22:O24),5) -> 3858.14 | P25: 3918.19 | R25: 3926.9 | S25: 4003.04 | T25: 4080.7 | U25: 4159.92 | V25: 4240.72 | W25: 4323.13 | X25: 4407.19 | Y25: 4492.94 | Z25: 4580.39 | AA25: =ROUND(SUM(AA22:AA24),5) -> 4625 | AB25: 4670.05 | AC25: 4715.55 | AD25: =ROUND(SUM(AD22:AD24),5) -> 52225.53
A26: 62000 · Building and Maintenance
B27: 62010 · Utilities | C27: 1803.25 | D27: 3461.59 | E27: 3941.06 | F27: 1438.81 | G27: 2106.59 | H27: 2892.86 | I27: 2571.49 | J27: 2669.26 | K27: 3099.57 | L27: 2729.81 | M27: =ROUND(SUM(C27:L27),5) -> 26714.29 | O27: 2700 | P27: 2700 | R27: 2700 | S27: 2700 | T27: 2700 | U27: 2700 | V27: 2700 | W27: 2700 | X27: 2700 | Y27: 2700 | Z27: 2700 | AA27: 2700 | AB27: 2700 | AC27: 2700 | AD27: =SUM(R27:AC27) -> 32400
B28: 62020 · Insurance | C28: 507.96 | D28: 0 | E28: 16.84 | F28: 1491.64 | G28: 1388.8 | H28: 1045.9 | I28: 0 | J28: 2545.18 | K28: 1496.86 | L28: 1496.86 | M28: =ROUND(SUM(C28:L28),5) -> 9990.04 | O28: 1496.86 | P28: 1496.86 | R28: 1496.86 | S28: 1496.86 | T28: 1496.86 | U28: 1496.86 | V28: 1496.86 | W28: 1496.86 | X28: 1496.86 | Y28: 1496.86 | Z28: 1496.86 | AA28: 1496.86 | AB28: 1496.86 | AC28: 1496.86 | AD28: 17962.32
B29: 62040 · Repairs and Maintenance | C29: 286.04 | D29: 2409.04 | E29: 85.12 | F29: 684.55 | G29: 169.68 | H29: 1579.14 | I29: 899.94 | J29: 987.51 | K29: 14.83 | L29: 1691.22 | M29: =ROUND(SUM(C29:L29),5) -> 8807.07 | O29: 700 | P29: 700 | R29: 700 | S29: 700 | T29: 700 | U29: 700 | V29: 700 | W29: 700 | X29: 700 | Y29: 700 | Z29: 700 | AA29: 700 | AB29: 700 | AC29: 700 | AD29: 8400
B30: 62050 · Property Taxes | C30: 0 | D30: 0 | E30: 0 | F30: 2036.41 | G30: 0 | H30: 0 | I30: 0 | J30: 0 | K30: 0 | L30: 1762.77 | M30: =ROUND(SUM(C30:L30),5) -> 3799.18 | O30: 0 | P30: 0 | R30: 0 | S30: 0 | T30: 0 | U30: 1762.77 | V30: 0 | W30: 0 | X30: 0 | Y30: 0 | Z30: 0 | AA30: 0 | AB30: 0 | AC30: 0 | AD30: 1762.77
A31: Total 62000 · Building and Maintenance | C31: =ROUND(SUM(C26:C30),5) -> 2597.25 | D31: 5870.63 | E31: 4043.02 | F31: 5651.41 | G31: 3665.07 | H31: 5517.9 | I31: 3471.43 | J31: 6201.95 | K31: 4611.26 | L31: 7680.66 | M31: =ROUND(SUM(C31:L31),5) -> 49310.58 | O31: =ROUND(SUM(O26:O30),5) -> 4896.86 | P31: 4896.86 | R31: 4896.86 | S31: 4896.86 | T31: 4896.86 | U31: 6659.63 | V31: 4896.86 | W31: 4896.86 | X31: 4896.86 | Y31: 4896.86 | Z31: =ROUND(SUM(Z26:Z30),5) -> 4896.86 | AA31: 4896.86 | AB31: 4896.86 | AC31: 4896.86 | AD31: =ROUND(SUM(AD26:AD30),5) -> 60525.09
A32: 63000 · Contractual Services
B33: 63010 · Contractual Services Accounting | C33: 690.47 | D33: 0 | E33: 462.5 | F33: 250 | G33: 731.25 | H33: 0 | I33: 442.43 | J33: 516.21 | K33: 459.23 | L33: 295.24 | M33: =ROUND(SUM(C33:L33),5) -> 3847.33 | O33: 400 | P33: 400 | R33: 400 | S33: 400 | T33: 400 | U33: 400 | V33: 400 | W33: 400 | X33: 400 | Y33: 400 | Z33: 400 | AA33: 400 | AB33: 400 | AC33: 400 | AD33: =SUM(R33:AC33) -> 4800
B34: 63020 · AA Fees FE Warren AFB | C34: 964.23 | D34: 1407.87 | E34: 1495.17 | F34: 1210.47 | G34: 1098.38 | H34: 1210.87 | I34: 940.42 | J34: 1090.48 | K34: 1314.85 | L34: 977.72 | M34: 11710.46 | O34: 977 | P34: =O34/2 -> 488.5
B35: 63025 · Hotel Discounts | C35: 216.77 | D35: 336.98 | E35: 172.36 | F35: 206.91 | G35: 166.74 | H35: 121.31 | I35: 311.07 | J35: 193.35 | K35: 97.63 | L35: 112.81 | M35: 1935.93 | O35: 200 | P35: 200 | R35: 200 | S35: 200 | T35: 200 | U35: 200 | V35: 200 | W35: 200 | X35: 200 | Y35: 200 | Z35: 200 | AA35: 200 | AB35: 200 | AC35: 200 | AD35: 2400
B36: 63060 · Waste Disposal | C36: 0 | D36: 0 | E36: 0 | F36: 0 | G36: -273.87 | H36: 0 | I36: 0 | J36: 0 | K36: 0 | L36: 0 | M36: -273.87 | O36: 0 | P36: 0 | R36: 0 | S36: 0 | T36: 0 | U36: 0 | V36: 0 | W36: 0 | X36: 0 | Y36: 0 | Z36: =ROUND(SUM(O36:Y36),5) -> 0 | AA36: =ROUND(SUM(P36:Z36),5) -> 0 | AB36: =ROUND(SUM(R36:AA36),5) -> 0 | AC36: =ROUND(SUM(S36:AB36),5) -> 0 | AD36: 0
B37: 63061 · Fire Prevention | C37: 0 | D37: 0 | E37: 0 | F37: 0 | G37: 0 | H37: 0 | I37: 0 | J37: 0 | K37: 0 | L37: 296.46 | M37: 296.46 | O37: 0 | P37: 0 | R37: 0 | S37: 0 | T37: 0 | U37: 0 | V37: 0 | W37: 0 | X37: 0 | Y37: 0 | Z37: 0 | AA37: 296.46 | AB37: 0 | AC37: 0 | AD37: 296.46
B38: 63065 · Snow Removal | C38: 0 | D38: 0 | E38: 0 | F38: 0 | G38: 0 | H38: 0 | I38: 0 | J38: 100 | K38: 0 | L38: 0 | M38: 100 | O38: 100 | P38: 100 | R38: 100 | S38: 100 | T38: 100 | U38: 100 | V38: 0 | W38: 0 | X38: 0 | Y38: 0 | Z38: 0 | AA38: 0 | AB38: 0 | AC38: 0 | AD38: 400
A39: Total 63000 · Contractual Services | C39: =ROUND(SUM(C32:C38),5) -> 1871.47 | D39: 1744.85 | E39: 2130.03 | F39: 1667.38 | G39: 1722.5 | H39: 1332.18 | I39: 1693.92 | J39: 1900.04 | K39: 1871.71 | L39: 1682.23 | M39: 17616.31 | O39: =ROUND(SUM(O32:O38),5) -> 1677 | P39: 1188.5 | R39: 700 | S39: 700 | T39: 700 | U39: 700 | V39: 600 | W39: 600 | X39: 600 | Y39: 600 | Z39: 600 | AA39: =ROUND(SUM(AA32:AA38),5) -> 896.46 | AB39: 600 | AC39: 600 | AD39: =ROUND(SUM(AD32:AD38),5) -> 7896.46
A40: 6366 · Webb Site | C40: 30 | D40: 66 | E40: 30 | F40: 30 | G40: 30 | H40: 60 | I40: 0 | J40: 30 | K40: 0 | L40: 30 | M40: 306 | O40: 30 | P40: 30 | R40: 30 | S40: 30 | T40: 30 | U40: 30 | V40: 30 | W40: 30 | X40: 30 | Y40: 30 | Z40: 30 | AA40: 30 | AB40: 30 | AC40: 30 | AD40: 360
A41: 64000 · Other Expenses | AD41: 0
B42: 64005 · Advertising and Promotion | C42: 83 | D42: 264 | E42: 191 | F42: 660.84 | G42: -17.91 | H42: 641.48 | I42: 0 | J42: 79 | K42: 79 | L42: 79 | M42: =ROUND(SUM(C42:L42),5) -> 2059.41 | O42: 79 | P42: 79 | R42: 79 | S42: 79 | T42: 79 | U42: 79 | V42: 79 | W42: 79 | X42: 79 | Y42: 79 | Z42: 79 | AA42: 79 | AB42: 79 | AC42: 79 | AD42: 948
B43: 64010 · Automobile Expense | C43: 133.38 | D43: 137.62 | E43: 151.91 | F43: 73.79 | G43: 0 | H43: 0 | I43: 0 | J43: 0 | K43: 0 | L43: 103 | M43: 599.7 | O43: 40 | P43: 40 | R43: 40 | S43: 40 | T43: 40 | U43: 40 | V43: 40 | W43: 40 | X43: 40 | Y43: 40 | Z43: 40 | AA43: 40 | AB43: 40 | AC43: 40 | AD43: 480
B44: 64030 · Bank Service Charges | C44: 2325.37 | D44: 2101.85 | E44: 2526.9 | F44: 2479.16 | G44: 2352.43 | H44: 3135.5 | I44: 2916.09 | J44: 3198.5 | K44: 3743.53 | L44: 2557.6 | M44: 27336.93 | O44: 750 | P44: =O44*1.02 -> 765 | R44: =P44*1.02 -> 780.3 | S44: =R44*1.02 -> 795.906 | T44: 811.82412 | U44: 828.0606024 | V44: 844.6218144 | W44: 861.5142507 | X44: 878.7445358 | Y44: 896.3194265 | Z44: 914.245815 | AA44: =Z44*1.02 -> 932.5307313 | AB44: =AA44*1.02 -> 951.1813459 | AC44: =AB44*1.02 -> 970.2049728 | AD44: 10465.45361
B45: 64035 · Cash Over & Short | C45: -139.01 | D45: 107.04 | E45: 5.83 | F45: 4.18 | G45: -23.14 | H45: 210.99 | I45: 191.08 | J45: 72.35 | K45: 98.99 | L45: 44.9 | M45: 573.21 | O45: 0 | P45: 0 | R45: 0 | S45: 0 | T45: 0 | U45: 0 | V45: 0 | W45: 0 | X45: 0 | Y45: 0 | Z45: =ROUND(SUM(O45:Y45),5) -> 0 | AA45: =ROUND(SUM(P45:Z45),5) -> 0 | AB45: =ROUND(SUM(R45:AA45),5) -> 0 | AC45: =ROUND(SUM(S45:AB45),5) -> 0 | AD45: 0
B46: 64045 · Damaged Laundry | C46: 50 | D46: 0 | E46: 0 | F46: 38.55 | G46: 0 | H46: 0 | I46: 50 | J46: 35 | K46: 0 | L46: 293.49 | M46: 467.04 | O46: 50 | P46: 50 | R46: 50 | S46: 50 | T46: 50 | U46: 50 | V46: 50 | W46: 50 | X46: 50 | Y46: 50 | Z46: 50 | AA46: 50 | AB46: 50 | AC46: 50 | AD46: 600
B47: 64080 · Postage | C47: 0 | D47: 5.04 | E47: 0 | F47: 0 | G47: 0 | H47: 0 | I47: 0 | J47: 0 | K47: 0 | L47: 73 | M47: 78.04 | O47: 10 | P47: 10 | R47: 10 | S47: 10 | T47: 10 | U47: 10 | V47: 10 | W47: 10 | X47: 10 | Y47: 10 | Z47: 10 | AA47: 10 | AB47: 10 | AC47: 10 | AD47: 120
B48: 64090 · Personal Property Tax | C48: 0 | D48: 0 | E48: 0 | F48: 0 | G48: 0 | H48: 0 | I48: 0 | J48: 0 | K48: 0 | L48: 297.13 | M48: 297.13 | O48: 0 | P48: 0 | R48: 0 | S48: 0 | T48: 0 | U48: 297.13 | V48: 0 | W48: 0 | X48: 0 | Y48: 0 | Z48: 0 | AA48: 0 | AB48: 0 | AC48: 0 | AD48: 297.13
A49: Total 64000 · Other Expenses | C49: =ROUND(SUM(C41:C48),5) -> 2452.74 | D49: 2615.55 | E49: 2875.64 | F49: 3256.52 | G49: 2311.38 | H49: 3987.97 | I49: 3157.17 | J49: 3384.85 | K49: 3921.52 | L49: 3448.12 | M49: 31411.46 | O49: =ROUND(SUM(O41:O48),5) -> 929 | P49: 944 | R49: 959.3 | S49: 974.906 | T49: 990.82412 | U49: 1304.1906 | V49: 1023.62181 | W49: 1040.51425 | X49: 1057.74454 | Y49: 1075.31943 | Z49: 1093.24581 | AA49: =ROUND(SUM(AA41:AA48),5) -> 1111.53073 | AB49: 1130.18135 | AC49: 1149.20497 | AD49: =ROUND(SUM(AD41:AD48),5) -> 12910.58361
A50: Total Expense | C50: =ROUND(C16+C21+C25+C31+SUM(C39:C40)+C49,5) -> 34319.1 | D50: 26593.82 | E50: 33253.04 | F50: 34044.25 | G50: 23478.11 | H50: 34570.55 | I50: 37186.44 | J50: 30232 | K50: 29051.74 | L50: =ROUND(L16+L21+L25+L31+SUM(L39:L40)+L49,5) -> 34647.35 | M50: 317376.4 | O50: =ROUND(O16+O21+O25+O31+SUM(O39:O40)+O49,5) -> 30018.243 | P50: 31467.5223 | R50: 41248.01845 | S50: 31094.7783 | T50: 31188.35642 | U50: 33343.7129 | V50: 31281.17411 | W50: 31380.47655 | X50: 41726.75299 | Y50: =ROUND(Y16+Y21+Y25+Y31+SUM(Y39:Y40)+Y49,5) -> 31585.09173 | Z50: =ROUND(Z16+Z21+Z25+Z31+SUM(Z39:Z40)+Z49,5) -> 33739.46534 | AA50: =ROUND(AA16+AA21+AA25+AA31+SUM(AA39:AA40)+AA49,5) -> 36352.71321 | AB50: 38599.24108 | AC50: 41390.98567 | AD50: 422930.7668
A51: Net Income | C51: =ROUND(C15-C50,5) -> -7662.53 | D51: 6110.4 | E51: -4356.23 | F51: -3692.65 | G51: 7565.12 | H51: -6424.69 | I51: -384.94 | J51: 6452.64 | K51: 949.39 | L51: -1369.69 | M51: -2813.18 | O51: =ROUND(O15-O50,5) -> 5687.331 | P51: 4810.66878 | R51: -4873.09035 | S51: 6006.14536 | T51: 6653.08452 | U51: 5253.05686 | V51: 8086.03164 | W51: 8772.57392 | X51: -847.14151 | Y51: 10187.11077 | Z51: =ROUND(Z15-Z50,5) -> 8866.67821 | AA51: 6678.74408 | AB51: 4861.78478 | AC51: 2503.89605 | AD51: =ROUND(AD15-AD50,5) -> 62148.87432
